{"text_format":"3","workbook":"xlsx","n_sheets":48,"sheets":["Инструкция","Лог обновления","Титульный","Территории","Дифференциация","Доступ к товарам и услугам","Публикация в других источниках","Сведения об изменении","Комментарии","Проверка","AllSheetsInThisWorkbook","TEHSHEET","modCheckCyan","modSettings","modfrmSetForPrint","modInfo","et_union_hor","et_union_vert","modList00","modList01","modList02","modList03","modList07","modList09","modHTTP","modfrmRegion","MR_LIST","REESTR_VT","REESTR_VED","modfrmReestrObj","DataOrg","modProv","modReestr","modfrmReestr","modUpdTemplMain","REESTR_ORG","modClassifierValidate","modHyp","modfrmDateChoose","modComm","modThisWorkbook","REESTR_MO","modfrmReestrMR","modServiceModule","modfrmCheckUpdates","REESTR_DS","REESTR_CHS","REESTR_LINK"],"not_rendered":{"images":22,"macros":1,"defined_names":195},"read":"whole","date_system":"1900"}

{"sheet":"Инструкция","index":0,"n_rows":90,"n_cols":27,"rows_kept":90,"merged":[[1,1,1,6],[2,1,2,2],[4,1,4,24],[6,4,18,23],[20,5,20,12],[20,15,20,23],[21,5,21,12],[21,15,21,23],[22,15,22,22],[34,4,38,23],[39,4,39,23],[40,4,44,23],[45,4,56,23],[57,4,57,23],[58,4,58,6],[58,7,58,23],[59,4,59,6],[60,7,60,23],[69,4,69,23],[70,4,70,23],[71,5,71,23],[72,5,72,23],[73,5,73,23],[74,4,74,23],[75,4,75,23],[76,4,76,23],[77,4,77,23],[78,4,78,23],[79,4,79,23],[80,4,80,23],[81,4,81,23],[82,4,82,23],[83,4,83,23],[85,4,85,23],[87,5,87,18],[89,5,89,23]]}
[{"$nulls":26}," (требуется обновление)"]
[null,{"$f":"\"Код шаблона: \" & GetCode()","v":"Код шаблона: JKH.OPEN.INFO.QUARTER.WARM.570"}]
[null,{"$f":"\"Версия \" & GetVersion()","v":"Версия 1.0"}]
[]
[null,"Информация о наличии (отсутствии) технической возможности подключения (технологического присоединения) к системе теплоснабжения, а также о ходе реализации заявок на подключение (технологическое присоединение) к системе теплоснабжения"]
[]
[{"$nulls":4},"• На рабочем месте должен быть установлен MS Office 2003 SP3, 2007 SP3, 2010, 2013 с полной версией MS Excel                                                                                                                                • Для корректной работы отчета необходим доступ к сети \"Интернет\"                                                         \n                                                                                                                                                          • Макросы во время работы должны быть включены (!)\n• Для корректной работы отчёта требуется выбрать низкий уровень безопасности\n(В меню MS Excel 2003: Сервис | Макрос | Безопасность | выбрать пункт «Низкая безопасность» | OK)\n(В меню MS Excel 2007/2010/2013: Параметры Excel | Центр управления безопасностью | Параметры центра управления безопасностью | Параметры макросов | Включить все макросы | ОК)\n\n• Если Вы работаете в табличном процессоре MS Excel 2007 и выше, то можете использовать для работы формат XLSB (Двоичная книга Excel). При работе в формате XLSB заметно быстрее происходит сохранение файла, а также уменьшается размер по сравнению с форматами XLS и XLSM\n\n• Не рекомендуется снимать защиту с листов и каким-либо образом модифицировать защищаемые формулы и расчётные поля, в противном случае, отчёт будет отклонён системой\n• При сохранении не следует выбирать формат XLSX (Книга Excel), так как в указанном формате макросы, необходимые для работы отчёта, безвозвратно удаляются"]
{"$rows_empty":13}
[{"$nulls":4},"A"," - не обязательные для заполнения",{"$nulls":8},"A"," - с формулами и константами"]
[{"$nulls":4},"A"," - обязательные для заполнения",{"$nulls":8},"A"," - с выбором значений до двойному клику,"]
[{"$nulls":15},"либо с возможностью выбора даты из календаря или ручного ввода"]
{"$rows_empty":11}
[{"$nulls":4},"Если в предложенном Вам списке необходимая организация, МР/МО отсутствуют, обновите реестры с помощью кнопок\n\nВ результате синхронизации с базой данных список организаций (МР/МО) будет заменён актуальным (механизм синхронизации требует подключения к сети Интернет и основан на использовании протокола HTTPS (TCP порт 443))\n\nЕсли после обновления Вам не удалось найти необходимую организацию в списке, обратитесь к ответственному за поддержание реестра Вашего региона."]
{"$rows_empty":10}
[{"$nulls":4},"• При сохранении шаблона осуществляется проверка корректности данных, в том числе на наличие значений в ячейках, обязательных для заполнения\n\n• Если какая-то ячейка не удовлетворяет условию проверки, на лист «Проверка» добавляется гиперссылка на данную ячейку и указывается причина ошибки\n\n• В колонке «Статус» для каждого сообщения возможны 2 значения: ошибка и предупреждение\n\n• При наличии сообщений со статусом «Ошибка» шаблон будет отклонён системой и не будет загружен в хранилище данных, сообщения со статусом «Предупреждение» носят информационный характер, и такой шаблон будет принят системой"]
{"$rows_empty":11}
[{"$nulls":4},"Обратиться в службу технической поддержки"]
{"$rows_empty":11}
[{"$nulls":4},"Законодательная основа шаблона"]
[{"$nulls":4},"Данный шаблон разработан в соответствии с:"]
[{"$nulls":4}," • ","Постановлением Правительства РФ от 05.07.2013 N 570 \"О стандартах раскрытия информации теплоснабжающими организациями, теплосетевыми организациями и органами регулирования\""]
[]
[]
[{"$nulls":4},"Принципы работы с шаблоном"]
[{"$nulls":4},"  Перед началом работы с шаблоном Вам необходимо нажать кнопку \"Приступить к заполнению\", после чего на форме выбора выбрать из выпадающего списка нужный субъект РФ. После выбора субъекта РФ в шаблоне отобразятся листы для заполнения."]
[{"$nulls":4},"  На листе «Титульный» нужно заполнить все ячейки голубого цвета."]
[{"$nulls":4},"  На листе «Уведомление» «Адрес сайта в сети интернет» вводите, не нарушая цвет ячейки /если копируете гиперссылку из браузера, то выполните двойной щелчок левой кнопки мыши по ячейке и только после этого можете вставить скопированный элемент/.\n"]
[{"$nulls":4},"  При вводе даты на расчетных листах необходимо выбрать дату из календаря (иконка справа от выбранной ячейки), либо ввести дату непосредственно в ячейку в формате - 'ДД.ММ.ГГГГ'."]
[{"$nulls":4},"  Если какой-либо из показателей на расчетных листах для Вашей организации отсутствует, введите в поле, обязательное для заполнение, «0» (для числовых показателей) и «-» (для текстовых).\n"]
[{"$nulls":4},"  Внимательно следите за информационными сообщениями на расчетных листах."]
[{"$nulls":4},"  Все необходимые комментарии по всем формам Вы можете отразить на листе «Комментарии»."]
[{"$nulls":4},"Инструкция по загрузке сопроводительных материалов с помощью \"ЕИАС Мониторинг\""]
[{"$nulls":4},"Получить более полную Инструкцию для данного шаблона"]
[]
[{"$nulls":4},"При наличии подключения к Интернет, можно автоматически проверять наличие доступных обновлений. Выберите способ оповещения о наличии обновлений для отчёта:"]
[]
[{"$nulls":5},"проверять доступные обновления (рекомендуется)",{"$nulls":20},"y"]
[]
[{"$nulls":5},"никогда не проверять наличие обновлений (не рекомендуется)"]

{"sheet":"Лог обновления","index":1,"n_rows":7,"n_cols":3,"rows_kept":7,"hidden":true}
["Дата/Время","Сообщение","Статус"]
["2017-10-31T15:56:54","Проверка доступных обновлений...","Информация"]
["2017-10-31T15:56:55","Нет доступных обновлений для отчёта с кодом JKH.OPEN.INFO.QUARTER.WARM.570!","Информация"]
["2017-10-31T15:57:05","Проверка доступных обновлений...","Информация"]
["2017-10-31T15:57:06","Нет доступных обновлений для отчёта с кодом JKH.OPEN.INFO.QUARTER.WARM.570!","Информация"]
["2017-10-31T15:59:49","Проверка доступных обновлений...","Информация"]
["2017-10-31T15:59:50","Нет доступных обновлений для отчёта с кодом JKH.OPEN.INFO.QUARTER.WARM.570!","Информация"]

{"sheet":"Титульный","index":2,"n_rows":41,"n_cols":6,"rows_kept":41,"merged":[[4,4,4,5]]}
[{"$nulls":5},26355209]
[]
[]
[{"$nulls":5},{"$f":"version","v":"Версия 1.0"}]
[{"$nulls":4},"Информация о наличии (отсутствии) технической возможности подключения (технологического присоединения) к системе теплоснабжения, а также о ходе реализации заявок на подключение (технологическое присоединение) к системе теплоснабжения"]
[]
[{"$nulls":4},"Субъект РФ","Ставропольский край"]
[]
[{"$nulls":4},"Публикация2","На сайте регулирующего органа"]
[]
[{"$nulls":4},"По решению организации информация раскрыта на ее официальном сайте в сети Интернет?","да"]
[]
[{"$nulls":4},"Тип отчета","Первичное раскрытие информации"]
[{"$nulls":4},"Дата внесения изменений в информацию, подлежащую раскрытию"]
[]
[{"$nulls":4},"Применяется дифференциация тарифа по централизованным системам теплоснабжения?"]
[{"$nulls":4},"Информация по скольким централизованным системам теплоснабжения будет заполнена в шаблоне?"]
[]
[{"$nulls":5},"Отчетный период"]
[{"$nulls":4},"Год",2017]
[{"$nulls":4},"Квартал","III квартал"]
[]
[{"$nulls":4},"Является ли данное юридическое лицо подразделением (филиалом) другой организации"]
[]
[]
[{"$nulls":4},"Наименование организации (филиала)","ООО \"Пятигорсктеплосервис\""]
[]
[]
[{"$nulls":4},"Наименование головной организации"]
[{"$nulls":4},"ИНН","2632062277"]
[{"$nulls":4},"КПП","263201001"]
[{"$nulls":4},"Вид деятельности"]
[]
[{"$nulls":4},"Почтовый адрес регулируемой организации","357538, г. Пятигорск, ул. Ессентукская, 31"]
[{"$nulls":4},"Фамилия, имя, отчество руководителя","Нашев Мухамед Огурлиевич"]
[]
[{"$nulls":5},"Ответственный за составление формы"]
[{"$nulls":4},"Фамилия, имя, отчество","Гриненко Николай Александрович"]
[{"$nulls":4},"Должность","Начальник ПТО"]
[{"$nulls":4},"(код) номер телефона","(8-8793) 98-28-62"]
[{"$nulls":4},"e-mail"," teplopts@gmail.com"]

{"sheet":"Территории","index":3,"n_rows":16,"n_cols":17,"rows_kept":16,"merged":[[3,3,3,7],[4,3,4,7],[6,3,6,4],[6,5,6,6],[8,3,8,4],[8,5,8,7],[8,8,8,11],[9,5,9,6],[9,8,9,9],[10,5,10,6],[10,8,10,9],[12,3,14,3],[12,4,14,4],[12,5,13,5],[12,6,13,6],[12,7,13,7]]}
[]
[]
[]
[{"$nulls":3},"Перечень муниципальных районов и муниципальных образований (территорий оказания услуг)"]
[{"$nulls":3},{"$f":"IF(org=0,\"Не определено\",org)","v":"ООО \"Пятигорсктеплосервис\""}]
[]
[{"$nulls":5},"да"]
[]
[{"$nulls":3},"Территория оказания услуг",null,"Муниципальный район",null,null,"Муниципальное образование"]
[{"$nulls":3},"№ п/п","Наименование","№ п/п",null,"Наименование","№ п/п",null,"Наименование","ОКТМО"]
[{"$nulls":3},"1","2","3",null,"4","5",null,"6","7"]
[{"$nulls":3},0,null,"",null,null,""]
[null,"auto",null,1,"Город-курорт Пятигорск, Город-курорт Пятигорск (07727000);","",1,"Город-курорт Пятигорск","","1","Город-курорт Пятигорск","07727000",{"$nulls":4},"Город-курорт Пятигорск, Город-курорт Пятигорск (07727000);"]
[{"$nulls":8},"",null,""]
[{"$nulls":5},"",null,"",""]
[null,"man",null,null,"","",null,null,"",{"$nulls":7},"Добавить территорию оказания услуг"]

{"sheet":"Дифференциация","index":4,"n_rows":26,"n_cols":26,"rows_kept":26,"merged":[[3,3,3,8],[4,3,4,8],[5,0,6,5],[7,1,7,3],[7,4,7,5],[8,1,8,3],[8,4,8,5],[9,1,9,3],[9,4,9,5],[10,1,10,3],[10,4,10,5],[11,1,11,3],[12,1,12,3],[13,1,13,3],[17,0,18,0],[17,3,17,4],[17,5,17,8],[17,9,17,12],[18,6,18,7],[18,10,18,11],[19,6,19,7],[19,10,19,11],[21,3,23,3],[21,4,23,4],[21,5,23,5],[21,6,22,6],[21,7,22,7],[21,8,22,8],[21,9,22,9],[24,2,25,2]]}
[]
[]
[]
[{"$nulls":3},"Информация о наличии (отсутствии) технической возможности подключения (технологического присоединения) к системе теплоснабжения, а также о ходе реализации заявок на подключение (технологическое присоединение) к системе теплоснабжения"]
[{"$nulls":3},{"$f":"IF(org=0,\"Не определено\",org)","v":"ООО \"Пятигорсктеплосервис\""}]
{"$rows_empty":12}
[{"$nulls":3},"Вид деятельности",null,"Дифференциация по территориям оказания услуг",{"$nulls":3},"Дифференциация по системам теплоснабжения"]
[{"$nulls":3},"№ п/п","Наименование","да/нет","№ п/п",null,"Наименование","да/нет","№ п/п",null,"Наименование"]
[{"$nulls":3},"1","2","3","4",null,"5","6","7",null,"8"]
[]
[{"$nulls":3},"1","Оказание услуг по передаче тепловой энергии, теплоносителя; Реализация тепловой энергии (мощности), теплоносителя","нет",null,1,null,"нет","","1","",{"$nulls":10},"64233354;64233355","a",1705000]
[{"$nulls":10},"",null,""]
[{"$nulls":8},"",null,""]
[{"$nulls":4},"",{"$nulls":5},""]
[{"$nulls":10},""]

{"sheet":"Доступ к товарам и услугам","index":5,"n_rows":15,"n_cols":10,"rows_kept":15,"merged":[[3,3,3,9],[4,3,4,9],[6,3,7,3],[6,4,7,4],[6,5,7,5],[6,6,7,6],[6,7,7,7],[6,8,6,9],[12,3,14,3],[12,4,14,4],[12,5,14,5],[12,6,13,6],[12,7,13,7],[12,8,12,9]]}
[{"$nulls":9},4]
[]
[]
[{"$nulls":3},"Информация о наличии (отсутствии) технической возможности подключения (технологического присоединения) к системе теплоснабжения, а также о ходе реализации заявок на подключение (технологическое присоединение) к системе теплоснабжения"]
[{"$nulls":3},{"$f":"IF(org=0,\"Не определено\",org)","v":"ООО \"Пятигорсктеплосервис\""}]
[]
[{"$nulls":3},"№ п/п","Информация, подлежащая раскрытию","Единица измерения","О","№ п/п","Вид деятельности:\r\n  - Оказание услуг по передаче тепловой энергии, теплоносителя; Реализация тепловой энергии (мощности), теплоносителя\r\n\r\nТерритория оказания услуг:\r\n  - без дифференциации\r\n\r\nСистема теплоснабжения:\r\n  - без дифференциации"]
[{"$nulls":8},"Показатель","Комментарий"]
[{"$nulls":3},"1","2","3",null,null,{"$f":"J1&\".1\"","v":"4.1"},{"$f":"J1&\".2\"","v":"4.2"}]
[{"$nulls":3},1,"Количество поданных заявок","шт",null,null,4]
[{"$nulls":3},2,"Количество исполненных заявок","шт",null,null,4]
[{"$nulls":3},3,"Количество заявок с решением об отказе в подключении","шт",null,null,0]
[{"$nulls":3},4,"Резерв мощности системы теплоснабжения в течение квартала","Гкал/час",null,1,"закрытая"]
[{"$nulls":8},45.92]
[{"$nulls":8},"Добавить систему теплоснабжения"]

{"sheet":"Публикация в других источниках","index":6,"n_rows":12,"n_cols":8,"rows_kept":12,"merged":[[4,3,4,4],[5,3,5,4],[7,3,8,3],[7,4,8,4],[7,5,7,7]]}
[]
[]
[]
[]
[{"$nulls":3},"Публикация в других источниках\n(публикация информации по решению организации на ее официальном сайте в сети \"Интернет\")"]
[{"$nulls":3},{"$f":"IF(org=0,\"Не определено\",org)","v":"ООО \"Пятигорсктеплосервис\""}]
[]
[{"$nulls":3},"№ п/п","Описание опубликованной информации","Официальный сайт организации в сети \"Интернет\""]
[{"$nulls":5},"Дата\nразмещения информации","Адрес официальной страницы сайта\nв сети \"Интернет\", на котором размещена информация","Ссылка на снимок экрана\nофициальной страницы сайта в сети \"Интернет\", на котором размещена информация"]
[{"$nulls":3},"1","2","3","4","5"]
[{"$nulls":3},1,"Информация о наличии (отсутствии) технической возможности подключения (технологического присоединения) к системе теплоснабжения, а также о ходе реализации заявок на подключение (технологическое присоединение) к системе теплоснабжения (п. 22 Постановления Правительства РФ от 05.07.2013 N 570 \"О стандартах раскрытия информации теплоснабжающими организациями, теплосетевыми организациями и органами регулирования\")","03.10.2017","http://www.teplopts.ru/kontaktyi/"]
[{"$nulls":4},"Добавить опубликованную информацию"]

{"sheet":"Сведения об изменении","index":7,"n_rows":14,"n_cols":5,"rows_kept":14,"hidden":true,"merged":[[6,3,6,4],[7,3,7,4]]}
[]
[]
[]
[]
[]
[]
[{"$nulls":3},"Сведения об изменениях в первоначально опубликованной информации"]
[{"$nulls":3},{"$f":"IF(org=0,\"Не определено\",org)","v":"ООО \"Пятигорсктеплосервис\""}]
[]
[{"$nulls":3},"№ п/п","Сведения"]
[{"$nulls":3},"1","2"]
[{"$nulls":3},0]
[{"$nulls":3},1]
[{"$nulls":4},"Добавить строку"]

{"sheet":"Комментарии","index":8,"n_rows":13,"n_cols":5,"rows_kept":13,"merged":[[6,3,6,4],[7,3,7,4]]}
[]
[]
[]
[]
[]
[]
[{"$nulls":3},"Комментарии"]
[{"$nulls":3},{"$f":"IF(org=0,\"Не определено\",org)","v":"ООО \"Пятигорсктеплосервис\""}]
[]
[{"$nulls":3},"№ п/п","Комментарий"]
[{"$nulls":3},"1","2"]
[{"$nulls":3},0]
[{"$nulls":4},"Добавить"]

{"sheet":"Проверка","index":9,"n_rows":4,"n_cols":5,"rows_kept":4,"merged":[[1,1,1,4]]}
[]
[null,"Результат проверки"]
[]
[null,"Ссылка1","Ссылка2","Причина","Статус"]

{"sheet":"AllSheetsInThisWorkbook","index":10,"n_rows":39,"n_cols":2,"rows_kept":39,"hidden":true}
["Расчетные листы","Скрытые листы"]
["Инструкция","AllSheetsInThisWorkbook"]
["Лог обновления","TEHSHEET"]
["Титульный","modCheckCyan"]
["Территории","modSettings"]
["Дифференциация","modfrmSetForPrint"]
["Доступ к товарам и услугам","modInfo"]
["Публикация в других источниках","et_union_hor"]
["Сведения об изменении","et_union_vert"]
["Комментарии","modList00"]
["Проверка","modList01"]
[null,"modList02"]
[null,"modList03"]
[null,"modList07"]
[null,"modList09"]
[null,"modHTTP"]
[null,"modfrmRegion"]
[null,"MR_LIST"]
[null,"REESTR_VT"]
[null,"REESTR_VED"]
[null,"modfrmReestrObj"]
[null,"DataOrg"]
[null,"modProv"]
[null,"modReestr"]
[null,"modfrmReestr"]
[null,"modUpdTemplMain"]
[null,"REESTR_ORG"]
[null,"modClassifierValidate"]
[null,"modHyp"]
[null,"modfrmDateChoose"]
[null,"modComm"]
[null,"modThisWorkbook"]
[null,"REESTR_MO"]
[null,"modfrmReestrMR"]
[null,"modServiceModule"]
[null,"modfrmCheckUpdates"]
[null,"REESTR_DS"]
[null,"REESTR_CHS"]
[null,"REESTR_LINK"]

{"sheet":"TEHSHEET","index":11,"n_rows":61,"n_cols":14,"rows_kept":61,"hidden":true}
["NSRF",null,"year_list","logical","Месяц\n(MONTH)","Квартал\n(QUARTER)","Месяц\n(kind_of_publication)","Единица измерения объема оказываемых услуг ГВС\n/kind_of_unit_GVS/","Вид тарифа\n/list_of_tariff/","mr_id","версия шаблона\n (DocProp_Version)","0.1","Тип отчета\ndata_type","Print_form"]
["Алтайский край",null,2013,"да","январь","I квартал","На официальном сайте организации","тыс.куб.м/сутки",null,52,"код шаблона\n(DocProp_TemplateCode)","JKH.OPEN.INFO.QUARTER.WARM.570","Первичное раскрытие информации","Форма 1.1"]
["Амурская область",null,2014,"нет","февраль","II квартал","На сайте регулирующего органа","Гкал/час","Без дифференциации","sys_id","сфера\n(TSphere)","ТС","Корректировка ранее раскрытой информации","Форма 1.2"]
["Астраханская область",null,2015,null,"март","III квартал",null,"куб.м/час",null,104,"сфера(латиница)\n(TSphere_trans)","WARM","Изменения в раскрытой ранее информации","Форма 1.3"]
["Белгородская область",null,2016,null,"апрель","IV квартал",{"$nulls":4},"сфера расширено\n(TSphere_full)",null,null,"Форма 1.4"]
["Брянская область",null,2017,null,"май",{"$nulls":8},"Форма 1.5"]
["Владимирская область",{"$nulls":3},"июнь",{"$nulls":8},"Форма 1.6"]
["Волгоградская область",{"$nulls":3},"июль",{"$nulls":5},"true",null,null,"Форма 1.7"]
["Еврейская автономная область",{"$nulls":3},"август",{"$nulls":8},"Форма 1.8"]
["Забайкальский край",{"$nulls":3},"сентябрь",{"$nulls":8},"Форма 1.9"]
["Ивановская область",{"$nulls":3},"октябрь",{"$nulls":5},"https://appsrv.regportal-tariff.ru/procwsxls/",null,null,"Форма 1.10"]
["Иркутская область",{"$nulls":3},"ноябрь",{"$nulls":8},"Форма 1.11"]
["Кабардино-Балкарская республика",{"$nulls":3},"декабрь",{"$nulls":8},"Форма 1.12"]
["Калининградская область",{"$nulls":12},"Форма 2.1"]
["Калужская область",{"$nulls":12},"Форма 2.2"]
["Карачаево-Черкесская республика",{"$nulls":5},"Текущая дата",{"$nulls":6},"Форма 2.3"]
["Кемеровская область",null,"Организация",{"$f":"IF(f_year = \"\",\"\", IF(LEN(f_quart)=0,\"\",IF(f_quart=\"I квартал\", \"01.01.\"&f_year,IF(f_quart=\"II квартал\",\"01.04.\"&f_year,(IF(f_quart=\"III квартал\", \"01.07.\"&f_year,\"01.10.\"&f_year)))) ))","v":"01.07.2017"},{"$f":"IF(f_year = \"\",\"\", IF(LEN(f_quart)=0,\"\",IF(f_quart=\"I квартал\", \"31.03.\"& f_year,IF(f_quart=\"II квартал\",\"30.06.\"& f_year,(IF(f_quart=\"III квартал\", \"30.09.\"& f_year,\"31.12.\"& f_year)))) ))","v":"30.09.2017"},null,"31.10.2017 20:59:48",{"$nulls":6},"Форма 2.4"]
["Костромская область",{"$nulls":12},"Форма 2.5"]
["Краснодарский край",{"$nulls":5},"Признак изменения данных на листе Доступ к товарам и услугам",{"$nulls":6},"Форма 2.6"]
["Красноярский край",null,"Виды деятельности",{"$nulls":3},true,{"$nulls":6},"Форма 2.7"]
["Ленинградская область",{"$nulls":12},"Форма 2.8"]
["Мурманская область",{"$nulls":12},"Форма 2.9"]
["Ненецкий автономный округ",{"$nulls":12},"Форма 2.10"]
["Нижегородская область",{"$nulls":12},"Форма 2.11"]
["Новгородская область",{"$nulls":12},"Форма 2.12"]
["Новосибирская область",{"$nulls":12},"Форма 2.13"]
["Омская область",{"$nulls":12},"Форма 2.14"]
["Оренбургская область",{"$nulls":12},"Форма 3.1"]
["Орловская область",{"$nulls":12},"Форма 3.2"]
["Пермский край",{"$nulls":12},"Форма 3.3"]
["Приморский край",{"$nulls":12},"Форма 3.4"]
["Псковская область",{"$nulls":12},"Форма 3.5"]
["Республика Адыгея",{"$nulls":12},"Форма 3.6"]
["Республика Башкортостан",{"$nulls":12},"Форма 3.7"]
["Республика Бурятия",{"$nulls":12},"Форма 3.8"]
["Республика Дагестан",{"$nulls":12},"Форма 3.9"]
["Республика Ингушетия",{"$nulls":12},"Форма 3.10"]
["Республика Калмыкия",{"$nulls":12},"Форма 3.11"]
["Республика Карелия",{"$nulls":12},"Форма 3.12"]
["Республика Крым",{"$nulls":12},"Форма 4.1"]
["Республика Мордовия",{"$nulls":12},"Форма 4.2"]
["Республика Саха",{"$nulls":12},"Форма 4.3"]
["Республика Татарстан",{"$nulls":12},"Форма 4.4"]
["Республика Тыва"]
["Республика Хакасия"]
["Ростовская область"]
["Самарская область"]
["Смоленская область"]
["Ставропольский край"]
["Тверская область"]
["Томская область"]
["Тульская область"]
["Тюменская область"]
["Удмуртская республика"]
["Хабаровский край"]
["Ханты-Мансийский автономный округ"]
["Челябинская область"]
["Чеченская Республика"]
["Чувашская республика"]
["Ярославская область"]
["г.Севастополь"]

{"sheet":"modCheckCyan","index":12,"n_rows":20,"n_cols":1,"rows_kept":20,"hidden":true}
[]
[{"$f":"IF(Территории!$E$13=\"\",1,0)","v":0}]
[{"$f":"IF(Территории!$H$13=\"\",1,0)","v":0}]
[{"$f":"IF(Территории!$K$13=\"\",1,0)","v":0}]
[{"$f":"IF('Сведения об изменении'!$E$13=\"\",1,0)","v":1}]
[{"$f":"IF(Дифференциация!$E$22=\"\",1,0)","v":0}]
[{"$f":"IF(Дифференциация!$F$22=\"\",1,0)","v":0}]
[{"$f":"IF(Дифференциация!$J$22=\"\",1,0)","v":0}]
[{"$f":"IF('Доступ к товарам и услугам'!$I$11=\"\",1,0)","v":0}]
[{"$f":"IF('Доступ к товарам и услугам'!$I$11=\"Введите наименование системы теплоснабжения\",1,0)","v":0}]
[{"$f":"IF('Доступ к товарам и услугам'!$I$12=\"\",1,0)","v":0}]
[{"$f":"IF('Доступ к товарам и услугам'!$I$12=\"Введите наименование системы теплоснабжения\",1,0)","v":0}]
[{"$f":"IF('Доступ к товарам и услугам'!$I$13=\"\",1,0)","v":0}]
[{"$f":"IF('Доступ к товарам и услугам'!$I$13=\"Введите наименование системы теплоснабжения\",1,0)","v":0}]
[{"$f":"IF('Доступ к товарам и услугам'!$I$14=\"\",1,0)","v":0}]
[{"$f":"IF('Доступ к товарам и услугам'!$I$14=\"Введите наименование системы теплоснабжения\",1,0)","v":0}]
[{"$f":"IF('Доступ к товарам и услугам'!$I$10=\"\",1,0)","v":0}]
[{"$f":"IF('Доступ к товарам и услугам'!$I$10=\"Введите наименование системы теплоснабжения\",1,0)","v":0}]
[{"$f":"IF('Публикация в других источниках'!$F$11=\"\",1,0)","v":0}]
[{"$f":"IF('Публикация в других источниках'!$G$11=\"\",1,0)","v":0}]

{"sheet":"modSettings","index":13,"n_rows":14,"n_cols":3,"rows_kept":14,"hidden":true}
["Версия шаблона","VERS_TEMP","BASE"]
["Настройка справочника наименований тарифов (Y / N)","FLAG_NAME_OF_TARIFF","N"]
["Функционал уведомлений о раскрытии (Y / N)","FLAG_OPEN_UVED","Y"]
["Функционал отслеживания типа отчета (Y / N)","FLAG_TYPE_OF_REP","Y"]
["Подрезание МР/МО по сфере оказания услуг (Y / N)","FLAG_MR_MO","Y"]
["Печать шаблона (Y / N)","FLAG_PRINT_TEMP","Y"]
["Печатные формы (Y / N)","FLAG_PRINT_FORM","N"]
["Размещение в шаблоне ссылок на материалы Хранилища (Y / N)","FLAG_LINK_DOC","N"]
["Отметка об отсутствии Интернета в МР/МО (Y / N)","FLAG_INTERNET_MR_MO","N"]
["Отметка о сдаче бух баланса (Y / N)","FLAG_BUH_BAL","Y"]
["Отметка о доле выручки (Y / N)","FLAG_PART_OF_REV","Y"]
["Отображение данных об организации (Y / N)","FLAG_DATA_ORG","Y"]
["Флаг забора данных из шаблонов группы PRICE (Y / N)","FLAG_AUTOFILL_PRICE","N"]
["Наличие ссылок на снимки экрана страницы сайта в сети Интернет, на которой размещена информация (Y / N)","FLAG_REF","Y"]

{"sheet":"modfrmSetForPrint","index":14,"n_rows":0,"n_cols":0,"rows_kept":0,"hidden":true}

{"sheet":"modInfo","index":15,"n_rows":25,"n_cols":2,"rows_kept":25,"hidden":true,"merged":[[10,3,10,10],[11,3,11,10],[12,3,12,10],[13,3,13,10],[14,3,14,10],[15,3,15,10],[16,3,16,10]]}
[null,"Титульный"]
[7,"Шаблон предназначен для отправки в субъект РФ, на территории которого осуществляется оказание услуг"]
[1,"Шаблон предназначен для предоставления в регулирующий орган следующей информации:\n1) о наличии (отсутствии) технической возможности подключения (технологического присоединения) к системе теплоснабжения, а также о регистрации и ходе реализации заявок на подключение (технологическое присоединение) к системе теплоснабжения согласно пункту 22 Постановления Правительства РФ от 05.07.2013 N570;\n2) cведения о раскрытии соответствующей информации на официальном сайте организации в сети Интернет, подлежащие предоставлению в орган исполнительной власти субъекта Российской Федерации в области государственного регулирования цен (тарифов) согласно пункту 11 Постановления Правительства РФ от 05.07.2013 N570;\n3) cведения об изменении, подлежащие публикации, на основании требований пункта 12 Постановления Правительства РФ от 05.07.2013 N 570."]
[2,"Информация, подлежит обязательному опубликованию на официальном сайте в сети \"Интернет\" органа исполнительной власти субъекта Российской Федерации в области государственного регулирования цен (тарифов), и (или) на официальном сайте органа местного самоуправления поселения или городского округа в случае их наделения в соответствии с законом субъекта Российской Федерации полномочиями по государственному регулированию цен (тарифов), согласно пункту 3а) Постановления Правительства РФ от 05.07.2013 №570."]
[3,"Если информация публикуется только на официальном сайте в информационно-телекоммуникационной сети \"Интернет\" (далее – сети Интернет) органа исполнительной власти субъекта Российской Федерации в области государственного регулирования цен (тарифов) или на официальном сайте органа местного самоуправления поселения или городского округа в случае их наделения в соответствии с законом субъекта Российской Федерации полномочиями по государственному регулированию цен (тарифов), в поле \"По решению организации информация раскрыта на ее официальном сайте в сети Интернет?\" необходимо указать \"Нет\".\n\nЕсли же информация дополнительно публикуется на официальном сайте организации в сети Интернет, в поле \"По решению организации информация раскрыта на ее официальном сайте в сети Интернет?\" необходимо указать \"Да\"."]
[4,"По умолчанию установлено значение «Первичное раскрытие информации». Это означает, что информация раскрывается в соответствии с установленными сроком и периодичностью.\n\nВ случае, если в раскрываемой информации произошли изменения, сведения об этих изменениях подлежат опубликованию в шаблоне с типом отчета \"Изменения в раскрытой ранее информации\".\n\nВ случае, если в уже отправленном шаблоне обнаружена ошибка, исправленный шаблон необходимо отправить с типом отчета «Корректировка ранее раскрытой информации»."]
[5,"В случае, если регулируемыми организациями оказываются услуги по нескольким технологически не связанным между собой системам теплоснабжения и если в отношении указанных систем устанавливаются различные тарифы в сфере теплоснабжения, то информация раскрывается отдельно по каждой системе теплоснабжения."]
[6,"Укажите количество технологически не связанных между собой систем теплоснабжения (или их групп), в отношении которых устанавливаются различные тарифы в сфере теплоснабжения. Внимание! Одна централизованная система теплоснабжения может включать несколько систем теплоснабжения, объединенных для целей установления тарифа. Необходимо указать только количество централизованных систем теплоснабжения.\n\nВ случае, если централизованная система теплоснабжения одна, в поле \"Применяется дифференциация тарифа по централизованным системам теплоснабжения\" необходимо указать \"Нет\"."]
[null,"Публикация на прочих ресурсах"]
[null,"Вводите адрес сайта, не нарушая цвет ячейки /если копируете гиперссылку из браузера, то выполните двойной щелчок по ячейке и только после этого можете вставить скопированный элемент/\nДля редактирования указанной гиперссылки или перехода по ней выполните двойной щелчок левой клавиши мыши по ячейке"]
[null,{"$f":"IF(OR(FLAG_LINK_DOC=\"Y\",FLAG_LINK_DOC=\"NY\",FLAG_LINK_DOC=\"YY\"),\"Указывается ссылка на загруженный в Хранилище ЕИАС снимок экрана официальной страницы сайта, на котором размещена информация\",\"Указывается ссылка на загруженный в Интернет-ресурс снимок экрана официальной страницы сайта, на котором размещена информация\") & \". Для редактирования указанной гиперссылки или перехода по ней выполните двойной щелчок левой клавиши мыши по ячейке\"","v":"Указывается ссылка на загруженный в Интернет-ресурс снимок экрана официальной страницы сайта, на котором размещена информация. Для редактирования указанной гиперссылки или перехода по ней выполните двойной щелчок левой клавиши мыши по ячейке"}]
[null,"Указывается дата, по состоянию на которую информация стала доступной в сети Интернет для неограниченного круга лиц\nВыберите значение из календаря (иконка справа от выбранной ячейки), либо введите дату непосредственно в ячейку в формате - 'ДД.ММ.ГГГГ'"]
[null,"Территории"]
[1,"Наименование территории оказания услуг для целей идентификации"]
[2,"Муниципальные районы и муниципальные образования, на территории которых осуществляется оказание услуг"]
[null,"Дифференциация"]
[1,"В случае, если регулируемая организация осуществляет несколько видов деятельности, информация о которых подлежит раскрытию, информация по каждому виду деятельности раскрывается отдельно."]
[2,"Поле заполняется выбором значений из списка. Если значений для выбора нет - убедитесь, что лист \"Территории\" заполнен."]
[3,"Условное наименование системы теплоснабжения для целей идентификации."]
[4,"В случае, если регулируемыми организациями оказываются услуги по нескольким технологически не связанным между собой системам теплоснабжения и если в отношении указанных систем устанавливаются различные тарифы в сфере теплоснабжения, то информация раскрывается отдельно по каждой системе теплоснабжения."]
[null,"Доступ к товарам и услугам"]
[1,"При использовании регулируемой организацией нескольких систем теплоснабжения информация о резерве мощности таких систем публикуется в отношении каждой системы теплоснабжения."]
[null,"Сведения об изменении"]
[1,"Лист заполняется в случае, если на Титульном листе в поле \"Тип отчета\" выбрано значение «Изменения в раскрытой ранее информации»."]
[null,"Нет доступных обновлений, версия отчёта актуальна"]

{"sheet":"et_union_hor","index":16,"n_rows":46,"n_cols":26,"rows_kept":46,"hidden":true,"merged":[[18,3,20,3],[18,4,20,4],[18,5,19,5],[18,6,19,6],[18,7,19,7],[24,5,25,5],[24,6,25,6],[24,7,25,7],[34,3,36,3],[34,4,36,4],[34,5,36,5],[34,6,35,6],[34,7,35,7],[34,8,35,8],[34,9,35,9],[40,6,41,6],[40,7,41,7],[40,8,41,8],[40,9,41,9]]}
[]
[]
["et_List02"]
[]
[]
[]
["et_Comm"]
[]
[]
[]
["et_List03"]
[]
[]
[]
[]
[]
["et_List09_0"]
[]
[null,"auto",null,1,null,null,1,null,null,"1"]
[{"$nulls":10},"Добавить МО"]
[{"$nulls":7},"Добавить МР"]
[]
["et_List09_1"]
[]
[null,"auto",{"$nulls":4},1,null,null,1]
[{"$nulls":10},"Добавить МО"]
[]
["et_List09_2"]
[]
[null,"auto",{"$nulls":7},1]
[]
[]
["et_List07_1"]
[]
[{"$nulls":3},"1",null,"нет",null,1,null,"нет",null,"1",{"$nulls":12},"a",1705000]
[{"$nulls":12},"Добавить систему теплоснабжения"]
[{"$nulls":8},"Добавить описание территории оказания услуг"]
[]
["et_List07_4"]
[]
[{"$nulls":7},1,"","нет",null,"1",{"$nulls":12},"a",1705000]
[{"$nulls":12},"Добавить систему теплоснабжения"]
[]
["et_List07_5"]
[]
[{"$nulls":11},"1","",{"$nulls":11},"a",1705000]

{"sheet":"et_union_vert","index":17,"n_rows":0,"n_cols":0,"rows_kept":0,"hidden":true}

{"sheet":"modList00","index":18,"n_rows":0,"n_cols":0,"rows_kept":0,"hidden":true}

{"sheet":"modList01","index":19,"n_rows":14,"n_cols":10,"rows_kept":14,"hidden":true,"merged":[[3,3,3,9],[4,3,4,9],[6,3,7,3],[6,4,7,4],[6,5,7,5],[6,6,7,6],[6,7,7,7],[6,8,6,9],[12,3,14,3],[12,4,14,4],[12,5,14,5],[12,6,13,6],[12,7,13,7],[12,8,12,9]]}
{"$rows_empty":7}
[{"$nulls":8},"Показатель","Комментарий"]
[{"$nulls":3},"1","2","3",null,null,{"$f":"J1&\".1\"","v":".1"},{"$f":"J1&\".2\"","v":".2"}]
[]
[]
[]
[{"$nulls":8},"Введите наименование системы теплоснабжения"]
[{"$nulls":8},""]

{"sheet":"modList02","index":20,"n_rows":0,"n_cols":0,"rows_kept":0,"hidden":true,"merged":[[4,3,4,4],[5,3,5,4],[7,3,8,3],[7,4,8,4],[7,5,7,7]]}

{"sheet":"modList03","index":21,"n_rows":0,"n_cols":0,"rows_kept":0,"hidden":true,"merged":[[6,3,6,4],[7,3,7,4]]}

{"sheet":"modList07","index":22,"n_rows":22,"n_cols":26,"rows_kept":22,"hidden":true,"merged":[[3,3,3,8],[4,3,4,8],[5,0,6,5],[7,1,7,3],[7,4,7,5],[8,1,8,3],[8,4,8,5],[9,1,9,3],[9,4,9,5],[10,1,10,3],[10,4,10,5],[11,1,11,3],[12,1,12,3],[13,1,13,3],[17,0,18,0],[17,3,17,4],[17,5,17,8],[17,9,17,12],[18,6,18,7],[18,10,18,11],[19,6,19,7],[19,10,19,11],[21,3,23,3],[21,4,23,4],[21,5,23,5],[21,6,22,6],[21,7,22,7],[21,8,22,8],[21,9,22,9],[24,2,25,2]]}
{"$rows_empty":21}
[{"$nulls":23},64279412,"a",1705000]

{"sheet":"modList09","index":23,"n_rows":16,"n_cols":4,"rows_kept":16,"hidden":true,"merged":[[3,3,3,7],[4,3,4,7],[6,3,6,4],[6,5,6,6],[8,3,8,4],[8,5,8,7],[8,8,8,11],[9,5,9,6],[9,8,9,9],[10,5,10,6],[10,8,10,9],[12,3,14,3],[12,4,14,4],[12,5,13,5],[12,6,13,6],[12,7,13,7]]}
{"$rows_empty":11}
[{"$nulls":3},0]
[null,"man"]
[]
[]
[null,"man"]

{"sheet":"modHTTP","index":24,"n_rows":0,"n_cols":0,"rows_kept":0,"hidden":true}

{"sheet":"modfrmRegion","index":25,"n_rows":0,"n_cols":0,"rows_kept":0,"hidden":true}

{"sheet":"MR_LIST","index":26,"n_rows":0,"n_cols":0,"rows_kept":0,"hidden":true}

{"sheet":"REESTR_VT","index":27,"n_rows":0,"n_cols":0,"rows_kept":0,"hidden":true}

{"sheet":"REESTR_VED","index":28,"n_rows":4,"n_cols":2,"rows_kept":4,"hidden":true}
["ID_TARIFF_NAME","VED_NAME"]
[64233354,"Оказание услуг по передаче тепловой энергии, теплоносителя"]
[64233355,"Реализация тепловой энергии (мощности), теплоносителя"]
[64233357,"Оказание услуг по поддержанию резервной тепловой мощности"]

{"sheet":"modfrmReestrObj","index":29,"n_rows":0,"n_cols":0,"rows_kept":0,"hidden":true}

{"sheet":"DataOrg","index":30,"n_rows":0,"n_cols":0,"rows_kept":0,"hidden":true}

{"sheet":"modProv","index":31,"n_rows":0,"n_cols":0,"rows_kept":0,"hidden":true}

{"sheet":"modReestr","index":32,"n_rows":0,"n_cols":0,"rows_kept":0,"hidden":true}

{"sheet":"modfrmReestr","index":33,"n_rows":0,"n_cols":0,"rows_kept":0,"hidden":true}

{"sheet":"modUpdTemplMain","index":34,"n_rows":0,"n_cols":0,"rows_kept":0,"hidden":true}

{"sheet":"REESTR_ORG","index":35,"n_rows":68,"n_cols":10,"rows_kept":68,"hidden":true}
["№","REGION_ID","REGION_NAME","RST_ORG_ID","ORG_NAME","INN_NAME","KPP_NAME","ORG_START_DATE","ORG_END_DATE"]
[1,"2627","Ставропольский край","26419409","АО \"Невинномысский Азот\"","2631015563","263101001","31-12-1992 00:00:00",null,"WARM"]
[2,"2627","Ставропольский край","26850785","АО \"ПТЭК\"","2632800936","263201001","10-05-2011 00:00:00",null,"WARM"]
[3,"2627","Ставропольский край","26838066","АО \"РЭУ\"","7714783092","774501001",null,null,"WARM"]
[4,"2627","Ставропольский край","26417110","АО \"СКЭРК\"","0721009031","263145001",null,null,"WARM"]
[5,"2627","Ставропольский край","26355198","АО \"Теплосеть\" г. Невинномысск","2631054298","263101001",null,null,"WARM"]
[6,"2627","Ставропольский край","26355211","АО \"Теплосеть\" г. Ставрополь","2635095930","263501001","13-12-2006 00:00:00",null,"WARM"]
[7,"2627","Ставропольский край","26355189","АО \"ЭНЕРГОРЕСУРСЫ\"","2626020720","262601001","29-07-1994 00:00:00",null,"WARM"]
[8,"2627","Ставропольский край","28118061","ГБПОУ ЖХСТ","2627012954","262701001","15-02-2012 00:00:00",null,"WARM"]
[9,"2627","Ставропольский край","26355222","ГБУЗ СК \"ККБ\"","2630019702","263001001","10-04-1996 00:00:00",null,"WARM"]
[10,"2627","Ставропольский край","26355214","ГКУЗ \"Ставропольский краевой госпиталь для ветеранов войн\"","2632055946","263201001","26-05-2011 00:00:00",null,"WARM"]
[11,"2627","Ставропольский край","26355185","ГМУП \"Теплосеть\"","2625002189","262501001",null,null,"WARM"]
[12,"2627","Ставропольский край","26355225","ГУП СК \"Крайтеплоэнерго\"","2635060510","263501001","16-01-2002 00:00:00",null,"WARM"]
[13,"2627","Ставропольский край","26355176","ГУП СК ЖКХ Кировского района","2609014934","260901001","28-10-1997 00:00:00",null,"WARM"]
[14,"2627","Ставропольский край","26355210","ЗАО \"Пассаж\"","2633001132","263601001",null,null,"WARM"]
[15,"2627","Ставропольский край","26360929","ЗАО \"ЮЭК\" филиал в г. Лермонтов Ставропольского края","7704262319","262902001","23-05-2003 00:00:00",null,"WARM"]
[16,"2627","Ставропольский край","30370933","ИП Гукасян Владимир Александрович","263603503719","отсутствует","24-06-2015 00:00:00",null,"WARM"]
[17,"2627","Ставропольский край","29649010","ИП Кашурина Дарья Андреевна","263408566507","отсутствует","14-09-2015 00:00:00",null,"WARM"]
[18,"2627","Ставропольский край","30479512","ИП Согоян Геворг Владимирович","263410214911","отсутствует","24-12-2015 00:00:00",null,"WARM"]
[19,"2627","Ставропольский край","26355205","ЛПУП  Санаторий \"РОДНИК\"","2632053836","263201001","29-06-1999 00:00:00",null,"WARM"]
[20,"2627","Ставропольский край","26355207","ЛПУП \"Пятигорская бальнеогрязелечебница\"","2632054854","263201001","14-11-2002 00:00:00",null,"WARM"]
[21,"2627","Ставропольский край","26414029","МКП \"Надежда\" МО с. Благодатное Петровского района Ставропольского края","2617013148","261701001","02-04-2008 00:00:00",null,"WARM"]
[22,"2627","Ставропольский край","26355169","МУП \"ЖКХ\" Апанасенковского муниципального района Ставропольского края","2602004366","260201001","11-06-2009 00:00:00",null,"WARM"]
[23,"2627","Ставропольский край","26355172","МУП \"КХ\" Грачёвского муниципального района Ставропольского края","2606000122","260601001","15-09-2008 00:00:00",null,"WARM"]
[24,"2627","Ставропольский край","26355182","МУП \"КХ\" Степновского муниципального района Ставропольского края","2620000580","262001001","26-05-2009 00:00:00",null,"WARM"]
[25,"2627","Ставропольский край","28450562","МУП \"Комбытсервис\"","2611007282","261101001","08-10-2003 00:00:00",null,"WARM"]
[26,"2627","Ставропольский край","26383213","МУП \"Лермонтовгоргаз\"","2629005046","262901001","21-11-2002 00:00:00",null,"WARM"]
[27,"2627","Ставропольский край","26355192","МУП \"Теплосеть\" г. Железноводск","2627007954","262701001",null,null,"WARM"]
[28,"2627","Ставропольский край","26526815","МУП ЖКХ Александровского района","2601004596","260101001","08-09-1998 00:00:00",null,"WARM"]
[29,"2627","Ставропольский край","26355178","МУП КМР СК « ЖКХ Курского района»","2612016970","261201001","08-08-2002 00:00:00",null,"WARM"]
[30,"2627","Ставропольский край","26355171","МУП КХ Арзгирского района","2604000247","260401001","03-07-2000 00:00:00",null,"WARM"]
[31,"2627","Ставропольский край","26355183","МУП КХ Туркменского района","2622003515","262201001","28-07-2006 00:00:00",null,"WARM"]
[32,"2627","Ставропольский край","26355177","МУП СК ЖКХ Кочубеевского района","2610012931","261001001","19-05-2009 00:00:00",null,"WARM"]
[33,"2627","Ставропольский край","26355197","ОАО \"Квант-Энергия\"","2631002155","263101001","13-12-1994 00:00:00",null,"WARM"]
[34,"2627","Ставропольский край","26800337","ОАО \"Международный аэропорт Минеральные Воды\"","2630800970","263001001","25-01-2012 00:00:00",null,"WARM"]
[35,"2627","Ставропольский край","27507656","ОАО \"РЭУ\" Филиал Владикавказский","7714783092","151543001","18-06-2009 00:00:00",null,"WARM"]
[36,"2627","Ставропольский край","26355174","ОАО \"Ставропольсахар\"","2607012219","260701001","07-07-1999 00:00:00",null,"WARM"]
[37,"2627","Ставропольский край","26355194","ОАО \"Теплосеть\" г. Кисловодск","2628008414","262801001",null,null,"WARM"]
[38,"2627","Ставропольский край","26355187","ОАО \"Хлебокомбинат \"Георгиевский\"","2625012571","262501001","29-10-1992 00:00:00",null,"WARM"]
[39,"2627","Ставропольский край","30479236","ООО \"Газпром Теплоэнерго Кисловодск\"","2628057299","262801001","20-04-2016 00:00:00",null,"WARM"]
[40,"2627","Ставропольский край","26355170","ООО \"ККЭБСЕ\" филиал в селе Солуно-Дмитриевское","7701215046","525350001","15-04-1999 00:00:00",null,"WARM"]
[41,"2627","Ставропольский край","27567409","ООО \"ЛУКОЙЛ-Ставропольэнерго\"","2624033219","264650001","01-08-2011 00:00:00",null,"WARM"]
[42,"2627","Ставропольский край","26355193","ООО \"Объединение котельных курорта\" г. Железноводск","2627016807","262701001",null,null,"WARM"]
[43,"2627","Ставропольский край","26355190","ООО \"Объединение котельных курорта\" г.Ессентуки","2626027362","262601001",null,null,"WARM"]
[44,"2627","Ставропольский край","26355209","ООО \"Пятигорсктеплосервис\"","2632062277","263201001",null,null,"WARM"]
[45,"2627","Ставропольский край","26891086","ООО \"Ритм-Б\"","2636032690","263501001","22-04-2011 00:00:00",null,"WARM"]
[46,"2627","Ставропольский край","26355203","ООО \"Санаторий \"Тарханы\"","2632012646","263201001",null,null,"WARM"]
[47,"2627","Ставропольский край","26893305","ООО \"Сфера\"","2601009756","260101001","25-02-2011 00:00:00",null,"WARM"]
[48,"2627","Ставропольский край","26355208","ООО \"ТЕХНО-Сервис\"","2632059130","263201001",null,null,"WARM"]
[49,"2627","Ставропольский край","30853665","ООО \"Теплоснаб-НШК\"","2631806212","263101001","21-11-2014 00:00:00",null,"WARM"]
[50,"2627","Ставропольский край","26891277","ООО \"Теплый дом\"","2601009690","260101001","11-01-2011 00:00:00",null,"WARM"]
[51,"2627","Ставропольский край","27882380","ООО \"ЭНЕРГЕТИК\" (котельная \"Машук\" в г. Пятигорске)","2618800660","261801001","26-03-2012 00:00:00",null,"WARM"]
[52,"2627","Ставропольский край","26355224","ООО «Газпром трансгаз Ставрополь»","2636032629","263601001","30-06-1999 00:00:00",null,"WARM"]
[53,"2627","Ставропольский край","30875804","ООО УК \"Он и к\"","2628039437","262801001","20-07-2000 00:00:00",null,"WARM"]
[54,"2627","Ставропольский край","26355173","ПАО \"Завод Атлант\"","2607000333","260701001","26-05-1994 00:00:00",null,"WARM"]
[55,"2627","Ставропольский край","26897146","ПАО \"Ставропласт\"","2630000067","263001001","21-06-2011 00:00:00",null,"WARM"]
[56,"2627","Ставропольский край","26355219","ПАО \"Ставропольский радиозавод \"Сигнал\"","2635000092","263501001",null,null,"WARM"]
[57,"2627","Ставропольский край","30438499","Санаторий им. И.М.Сеченова - НКФ ФГБУ РНЦ МРиК Минздрава России","7704040281","262643002","15-03-2016 00:00:00",null,"WARM"]
[58,"2627","Ставропольский край","26816056","Северо-Кавказская дирекция по тепловодоснабжению структурное подразделение Центральной дирекции по тепловодоснабжению - филиала ОАО \"РЖД\"","7708503727","616745019",null,null,"WARM"]
[59,"2627","Ставропольский край","26322297","Северо-Кавказский филиал ООО \"Газпром энерго\"","7736186950","263602001","27-07-1998 00:00:00",null,"WARM"]
[60,"2627","Ставропольский край","28980134","УФСБ России по Ставропольскому краю","2634025295","263401001",null,null,"WARM"]
[61,"2627","Ставропольский край","26759933","ФГБНУ ВНИИОК","2634013130","263401001","01-04-1991 00:00:00",null,"WARM"]
[62,"2627","Ставропольский край","30923515","ФГБУ \"Центральное жилищно-коммунальное управление\" Министерства обороны РФ","7729314745","616543001","14-11-2002 00:00:00",null,"WARM"]
[63,"2627","Ставропольский край","26355217","ФГКУ \"МСЧ УФСБ России по Ставропольскому краю\" (филиал в г. Кисловодске)","2633005786","263301001",null,null,"WARM"]
[64,"2627","Ставропольский край","26416944","Филиал \"Невинномысская ГРЭС\" ПАО \"Энел Россия\"","6671156423","263102001","27-10-2004 00:00:00",null,"WARM"]
[65,"2627","Ставропольский край","27357611","Филиал ОАО \"РЭУ\" \"Ростовский\"","7714783092","616543001",null,null,"WARM"]
[66,"2627","Ставропольский край","26416974","Филиал ПАО \"ОГК-2\"-Ставропольская ГРЭС","2607018122","260702001","09-03-2005 00:00:00",null,"WARM"]
[67,"2627","Ставропольский край","27727710","Филиал ФГУП \"НПО \"Микроген\" Минздрава России \"Аллерген\" в г.Ставрополь","7722292838","263402001","19-05-2003 00:00:00",null,"WARM"]

{"sheet":"modClassifierValidate","index":36,"n_rows":0,"n_cols":0,"rows_kept":0,"hidden":true}

{"sheet":"modHyp","index":37,"n_rows":0,"n_cols":0,"rows_kept":0,"hidden":true}

{"sheet":"modfrmDateChoose","index":38,"n_rows":0,"n_cols":0,"rows_kept":0,"hidden":true}

{"sheet":"modComm","index":39,"n_rows":0,"n_cols":0,"rows_kept":0,"hidden":true}

{"sheet":"modThisWorkbook","index":40,"n_rows":0,"n_cols":0,"rows_kept":0,"hidden":true}

{"sheet":"REESTR_MO","index":41,"n_rows":2,"n_cols":4,"rows_kept":2,"hidden":true}
["№","МР","МО","МО_ОКТМО"]
[1,"Город-курорт Пятигорск","Город-курорт Пятигорск","07727000"]

{"sheet":"modfrmReestrMR","index":42,"n_rows":0,"n_cols":0,"rows_kept":0,"hidden":true}

{"sheet":"modServiceModule","index":43,"n_rows":0,"n_cols":0,"rows_kept":0,"hidden":true}

{"sheet":"modfrmCheckUpdates","index":44,"n_rows":0,"n_cols":0,"rows_kept":0,"hidden":true}

{"sheet":"REESTR_DS","index":45,"n_rows":5,"n_cols":2,"rows_kept":5,"hidden":true}
[]
[]
[null,"Город-курорт Пятигорск, Город-курорт Пятигорск (07727000);"]
[null,"описание 2"]
[null,"Добавить "]

{"sheet":"REESTR_CHS","index":46,"n_rows":0,"n_cols":0,"rows_kept":0,"hidden":true}

{"sheet":"REESTR_LINK","index":47,"n_rows":2,"n_cols":3,"rows_kept":2,"hidden":true}
["ID","LINK_NAME","REGION"]
[64275710,"https://tariff.eias.ru/disclo/get_file?p_guid=????????-????-????-????-????????????","ALL"]